[Event "Late-Titled-Tuesday-Blitz-February-27-2024"]
[Site "Chess.com"]
[Date "2024.02.27"]
[Round "3"]
[White "VitorBronson"]
[Black "alexrustemov"]
[Result "0-1"]
[WhiteElo "2500"]
[BlackElo "2804"]
[TimeControl "180+1"]
[EndTime "14:29:23 PST"]
[Termination "alexrustemov won on time"]

1. d4 {[%clk 0:03:00.9]} 1... d5 {[%clk 0:02:59.1]} 2. c4 {[%clk 0:03:01]} 2...
c6 {[%clk 0:02:58.8]} 3. Nf3 {[%clk 0:03:00.9]} 3... Nf6 {[%clk 0:02:59]} 4. Nc3
{[%clk 0:03:00.5]} 4... a6 {[%clk 0:02:58.8]} 5. e3 {[%clk 0:02:54.9]} 5... b5
{[%clk 0:02:56.8]} 6. b3 {[%clk 0:02:53.7]} 6... Bg4 {[%clk 0:02:56.6]} 7. h3
{[%clk 0:02:52.1]} 7... Bh5 {[%clk 0:02:51.8]} 8. g4 {[%clk 0:02:43.2]} 8... Bg6
{[%clk 0:02:51.6]} 9. Ne5 {[%clk 0:02:43.6]} 9... dxc4 {[%clk 0:02:43.8]} 10.
bxc4 {[%clk 0:02:40.3]} 10... Nfd7 {[%clk 0:02:42.6]} 11. Nxg6 {[%clk
0:02:35.7]} 11... hxg6 {[%clk 0:02:42.6]} 12. Bg2 {[%clk 0:02:35.8]} 12... e6
{[%clk 0:02:38.3]} 13. O-O {[%clk 0:02:35.7]} 13... Bb4 {[%clk 0:02:37]} 14. Qb3
{[%clk 0:02:34.8]} 14... Bxc3 {[%clk 0:02:32.2]} 15. Qxc3 {[%clk 0:02:34.8]}
15... O-O {[%clk 0:02:32.2]} 16. Bb2 {[%clk 0:02:34.7]} 16... Nb6 {[%clk
0:02:31.5]} 17. d5 {[%clk 0:02:34.5]} 17... Qf6 {[%clk 0:02:20.1]} 18. Qxf6
{[%clk 0:02:31.2]} 18... gxf6 {[%clk 0:02:21]} 19. dxc6 {[%clk 0:02:31.1]} 19...
bxc4 {[%clk 0:01:49.3]} 20. c7 {[%clk 0:02:27.5]} 20... N8d7 {[%clk 0:01:49.3]}
21. Bxa8 {[%clk 0:02:20.9]} 21... Rxa8 {[%clk 0:01:50.2]} 22. Bd4 {[%clk
0:02:18.5]} 22... Rc8 {[%clk 0:01:49.6]} 23. Rab1 {[%clk 0:02:18.6]} 23... Nd5
{[%clk 0:01:45.4]} 24. Rb7 {[%clk 0:02:18.1]} 24... e5 {[%clk 0:01:37.2]} 25.
Ba7 {[%clk 0:01:56.3]} 25... c3 {[%clk 0:01:00.9]} 26. Bb8 {[%clk 0:01:49.8]}
26... Nc5 {[%clk 0:00:57]} 27. Ra7 {[%clk 0:01:31.7]} 27... Nd3 {[%clk
0:00:55.5]} 28. Rxa6 {[%clk 0:01:26.9]} 28... c2 {[%clk 0:00:48.4]} 29. Rd6
{[%clk 0:01:23.9]} 29... Nxc7 {[%clk 0:00:42.9]} 30. Rxd3 {[%clk 0:00:57.6]}
30... Ne6 {[%clk 0:00:42.9]} 31. Rc1 {[%clk 0:00:53.8]} 31... Rxb8 {[%clk
0:00:42.9]} 32. Rxc2 {[%clk 0:00:52.9]} 32... Rb1+ {[%clk 0:00:35.8]} 33. Kg2
{[%clk 0:00:52.8]} 33... e4 {[%clk 0:00:36.5]} 34. Rb3 {[%clk 0:00:50.1]} 34...
Ra1 {[%clk 0:00:35.2]} 35. h4 {[%clk 0:00:49.1]} 35... Kg7 {[%clk 0:00:35.2]}
36. Rb7 {[%clk 0:00:45.1]} 36... f5 {[%clk 0:00:35.3]} 37. gxf5 {[%clk
0:00:39.5]} 37... gxf5 {[%clk 0:00:35.3]} 38. Rb5 {[%clk 0:00:39.6]} 38... Kg6
{[%clk 0:00:33.1]} 39. f3 {[%clk 0:00:35.6]} 39... f6 {[%clk 0:00:22.5]} 40.
fxe4 {[%clk 0:00:31.8]} 40... fxe4 {[%clk 0:00:23.4]} 41. h5+ {[%clk 0:00:27.8]}
41... Kh6 {[%clk 0:00:22.1]} 42. Rf5 {[%clk 0:00:25.7]} 42... Ng5 {[%clk
0:00:16.9]} 43. Rxf6+ {[%clk 0:00:23.4]} 43... Kxh5 {[%clk 0:00:17.5]} 44. Rf5
{[%clk 0:00:24.1]} 44... Kg4 {[%clk 0:00:17.3]} 45. Re5 {[%clk 0:00:23]} 45...
Rb1 {[%clk 0:00:15.3]} 46. Rcc5 {[%clk 0:00:15.5]} 46... Rb2+ {[%clk 0:00:15.2]}
47. Kf1 {[%clk 0:00:15.8]} 47... Nf3 {[%clk 0:00:15.5]} 48. Rxe4+ {[%clk
0:00:08.7]} 48... Kg3 {[%clk 0:00:15.6]} 0-1

[Event "Late-Titled-Tuesday-Blitz-February-27-2024"]
[Site "Chess.com"]
[Date "2024.02.27"]
[Round "3"]
[White "laziestwin"]
[Black "Narek_Ghimoyan"]
[Result "1-0"]
[WhiteElo "2594"]
[BlackElo "2381"]
[TimeControl "180+1"]
[EndTime "14:29:24 PST"]
[Termination "laziestwin won by checkmate"]

1. d4 {[%clk 0:02:57.4]} 1... Nf6 {[%clk 0:02:59.3]} 2. c4 {[%clk 0:02:56.1]}
2... c6 {[%clk 0:02:59.4]} 3. Nc3 {[%clk 0:02:54.8]} 3... d5 {[%clk 0:02:59.5]}
4. cxd5 {[%clk 0:02:55.7]} 4... cxd5 {[%clk 0:02:59.6]} 5. Bf4 {[%clk
0:02:55.7]} 5... Nc6 {[%clk 0:03:00.1]} 6. e3 {[%clk 0:02:56.1]} 6... Bf5 {[%clk
0:02:58.8]} 7. Qb3 {[%clk 0:02:48.2]} 7... Qb6 {[%clk 0:02:53.6]} 8. Qxb6 {[%clk
0:02:00.5]} 8... axb6 {[%clk 0:02:53.2]} 9. Bb5 {[%clk 0:01:54.2]} 9... e6
{[%clk 0:02:51.9]} 10. Nf3 {[%clk 0:01:54.1]} 10... Bb4 {[%clk 0:02:49.3]} 11.
Ne5 {[%clk 0:01:46.1]} 11... O-O {[%clk 0:02:45.9]} 12. O-O {[%clk 0:01:42]}
12... Nxe5 {[%clk 0:02:41.4]} 13. Bxe5 {[%clk 0:01:42.9]} 13... Bxc3 {[%clk
0:02:28]} 14. bxc3 {[%clk 0:01:41.7]} 14... Ne4 {[%clk 0:02:28.9]} 15. Rfc1
{[%clk 0:01:39.1]} 15... Rfc8 {[%clk 0:02:27.6]} 16. c4 {[%clk 0:01:36.9]} 16...
dxc4 {[%clk 0:02:25.5]} 17. Bxc4 {[%clk 0:01:35.3]} 17... f6 {[%clk 0:02:13.3]}
18. Bg3 {[%clk 0:01:34.5]} 18... Nd2 {[%clk 0:02:07]} 19. Bb3 {[%clk 0:01:23.4]}
19... Nxb3 {[%clk 0:01:54.2]} 20. axb3 {[%clk 0:01:21.4]} 20... Be4 {[%clk
0:01:52.5]} 21. Rxa8 {[%clk 0:01:16.3]} 21... Rxa8 {[%clk 0:01:50.7]} 22. f3
{[%clk 0:01:12.7]} 22... Bc6 {[%clk 0:01:48.4]} 23. Bc7 {[%clk 0:01:10.9]} 23...
Ra3 {[%clk 0:01:43]} 24. Rc3 {[%clk 0:01:08.1]} 24... b5 {[%clk 0:01:42.4]} 25.
Bd6 {[%clk 0:01:02.1]} 25... Ra2 {[%clk 0:01:38.5]} 26. h4 {[%clk 0:00:53.3]}
26... Kf7 {[%clk 0:01:35]} 27. h5 {[%clk 0:00:53.2]} 27... f5 {[%clk 0:01:31]}
28. Be5 {[%clk 0:00:51.1]} 28... Rb2 {[%clk 0:01:28.9]} 29. Rd3 {[%clk
0:00:31.8]} 29... Bd5 {[%clk 0:01:27]} 30. Rc3 {[%clk 0:00:31.7]} 30... Bc6
{[%clk 0:01:23.8]} 31. Kh2 {[%clk 0:00:18.4]} 31... g5 {[%clk 0:01:21.1]} 32.
Kg3 {[%clk 0:00:16.1]} 32... g4 {[%clk 0:01:20.6]} 33. Rd3 {[%clk 0:00:08.6]}
33... gxf3 {[%clk 0:01:10.9]} 34. gxf3 {[%clk 0:00:07.7]} 34... Bd5 {[%clk
0:01:11.6]} 35. Rc3 {[%clk 0:00:07.9]} 35... Rxb3 {[%clk 0:01:06.7]} 36. Rc7+
{[%clk 0:00:07.6]} 36... Kf8 {[%clk 0:01:06.6]} 37. Kf4 {[%clk 0:00:06.4]} 37...
Rb1 {[%clk 0:00:58.4]} 38. Rxh7 {[%clk 0:00:06.2]} 38... Rf1 {[%clk 0:00:58.4]}
39. Kg5 {[%clk 0:00:05.7]} 39... Rxf3 {[%clk 0:00:52.2]} 40. Kf6 {[%clk
0:00:05.5]} 40... Ke8 {[%clk 0:00:52.8]} 41. h6 {[%clk 0:00:05.4]} 41... Rh3
{[%clk 0:00:48.7]} 42. Bc7 {[%clk 0:00:03.5]} 42... f4 {[%clk 0:00:40]} 43. Bxf4
{[%clk 0:00:02.5]} 43... Be4 {[%clk 0:00:39.5]} 44. Re7+ {[%clk 0:00:02.7]}
44... Kd8 {[%clk 0:00:37.1]} 45. Rxe6 {[%clk 0:00:03.4]} 45... Bd3 {[%clk
0:00:37.4]} 46. Re5 {[%clk 0:00:03.4]} 46... b4 {[%clk 0:00:35.9]} 47. Rd5+
{[%clk 0:00:01.7]} 47... Ke8 {[%clk 0:00:32.7]} 48. Rc5 {[%clk 0:00:02.6]} 48...
b3 {[%clk 0:00:29.1]} 49. Rc8+ {[%clk 0:00:03.4]} 49... Kd7 {[%clk 0:00:28.8]}
50. Rc7+ {[%clk 0:00:04.3]} 50... Kd8 {[%clk 0:00:20.4]} 51. Rxb7 {[%clk
0:00:05.2]} 51... Bc4 {[%clk 0:00:20.8]} 52. Ke5 {[%clk 0:00:04.8]} 52... Rh5+
{[%clk 0:00:20.3]} 53. Kd6 {[%clk 0:00:05]} 53... Bb5 {[%clk 0:00:15.8]} 54.
Rb8# {[%clk 0:00:04.8]} 1-0

[Event "Late-Titled-Tuesday-Blitz-February-27-2024"]
[Site "Chess.com"]
[Date "2024.02.27"]
[Round "3"]
[White "KuzubovYuriy"]
[Black "GothamChess"]
[Result "1-0"]
[WhiteElo "2947"]
[BlackElo "2677"]
[TimeControl "180+1"]
[EndTime "14:29:26 PST"]
[Termination "KuzubovYuriy won on time"]

1. d4 {[%clk 0:03:00.9]} 1... g6 {[%clk 0:02:54.4]} 2. e4 {[%clk 0:03:00.7]}
2... Bg7 {[%clk 0:02:54.5]} 3. Nf3 {[%clk 0:03:01.4]} 3... d6 {[%clk 0:02:54.7]}
4. Be2 {[%clk 0:03:01.2]} 4... Nf6 {[%clk 0:02:53.5]} 5. Nbd2 {[%clk 0:03:01]}
5... O-O {[%clk 0:02:54.2]} 6. O-O {[%clk 0:03:01.3]} 6... Nc6 {[%clk
0:02:54.5]} 7. Re1 {[%clk 0:03:00.7]} 7... e5 {[%clk 0:02:53.5]} 8. dxe5 {[%clk
0:03:00.7]} 8... dxe5 {[%clk 0:02:51.8]} 9. c3 {[%clk 0:02:59.4]} 9... Nh5
{[%clk 0:02:44.8]} 10. Nc4 {[%clk 0:02:59.3]} 10... Nf4 {[%clk 0:02:39.7]} 11.
Bf1 {[%clk 0:02:28.2]} 11... Qe7 {[%clk 0:02:33.5]} 12. Qc2 {[%clk 0:02:19.3]}
12... Bg4 {[%clk 0:02:21.4]} 13. Nfd2 {[%clk 0:02:19.4]} 13... Be6 {[%clk
0:02:12.9]} 14. b4 {[%clk 0:02:15.1]} 14... a6 {[%clk 0:02:10.8]} 15. a4 {[%clk
0:02:13.2]} 15... Rfd8 {[%clk 0:02:03.4]} 16. Ne3 {[%clk 0:02:06.7]} 16... Qg5
{[%clk 0:01:33.7]} 17. Nf3 {[%clk 0:02:02.7]} 17... Qh5 {[%clk 0:01:31]} 18. Bb2
{[%clk 0:01:50.9]} 18... Rd7 {[%clk 0:01:15.8]} 19. Rad1 {[%clk 0:01:44.8]}
19... Rad8 {[%clk 0:01:12.6]} 20. Rxd7 {[%clk 0:01:44]} 20... Rxd7 {[%clk
0:01:13.5]} 21. Bc1 {[%clk 0:01:22.4]} 21... h6 {[%clk 0:01:03.6]} 22. Rd1
{[%clk 0:01:18.6]} 22... Nh3+ {[%clk 0:00:53.1]} 23. Kh1 {[%clk 0:01:17.1]}
23... Rxd1 {[%clk 0:00:46]} 24. Nxd1 {[%clk 0:01:15.8]} 24... Ng5 {[%clk
0:00:35.7]} 25. Be2 {[%clk 0:00:59.9]} 25... Bg4 {[%clk 0:00:34.3]} 26. Ng1
{[%clk 0:00:59.9]} 26... Bxe2 {[%clk 0:00:29]} 27. Nxe2 {[%clk 0:01:00.8]} 27...
f5 {[%clk 0:00:23.9]} 28. Ng3 {[%clk 0:00:56.6]} 28... Qg4 {[%clk 0:00:20.7]}
29. Ne3 {[%clk 0:00:56.1]} 29... Qh4 {[%clk 0:00:12.5]} 30. exf5 {[%clk
0:00:56.4]} 30... e4 {[%clk 0:00:11.9]} 31. Qb3+ {[%clk 0:00:55.9]} 31... Kh8
{[%clk 0:00:10.6]} 32. Qd5 {[%clk 0:00:51.6]} 32... Ne5 {[%clk 0:00:06.6]} 33.
fxg6 {[%clk 0:00:50.5]} 33... Nxg6 {[%clk 0:00:06.2]} 34. Nef5 {[%clk
0:00:43.8]} 34... Qg4 {[%clk 0:00:05.3]} 35. Nxg7 {[%clk 0:00:42.3]} 35... Kxg7
{[%clk 0:00:03.6]} 36. Be3 {[%clk 0:00:41.3]} 36... Nf4 {[%clk 0:00:01.7]} 37.
Qd4+ {[%clk 0:00:33.9]} 37... Kf7 {[%clk 0:00:02]} 38. Bxf4 {[%clk 0:00:29.2]}
38... Qxf4 {[%clk 0:00:02.1]} 39. h3 {[%clk 0:00:28.7]} 39... Kg6 {[%clk
0:00:01.5]} 40. Kg1 {[%clk 0:00:25.3]} 40... h5 {[%clk 0:00:01.8]} 41. Ne2
{[%clk 0:00:20.9]} 41... Qf5 {[%clk 0:00:01.5]} 42. Qe3 {[%clk 0:00:20.6]} 42...
Qe5 {[%clk 0:00:01.7]} 43. Nf4+ {[%clk 0:00:20.1]} 43... Kf5 {[%clk 0:00:02.3]}
44. Nxh5 {[%clk 0:00:20.2]} 44... Qd5 {[%clk 0:00:03]} 45. Ng3+ {[%clk 0:00:20]}
45... Kg6 {[%clk 0:00:03.7]} 46. h4 {[%clk 0:00:19.7]} 46... Qd1+ {[%clk
0:00:04.3]} 47. Kh2 {[%clk 0:00:20.1]} 47... Ne6 {[%clk 0:00:02.3]} 48. Qxe4+
{[%clk 0:00:20.5]} 48... Kf6 {[%clk 0:00:02.8]} 49. Qf5+ {[%clk 0:00:19.7]}
49... Ke7 {[%clk 0:00:03.3]} 50. h5 {[%clk 0:00:19.5]} 50... Qc1 {[%clk
0:00:03.1]} 51. Qe5 {[%clk 0:00:18.7]} 51... Kd7 {[%clk 0:00:03.2]} 52. b5
{[%clk 0:00:17.8]} 52... axb5 {[%clk 0:00:03.2]} 53. axb5 {[%clk 0:00:18.7]}
53... Nf4 {[%clk 0:00:03.3]} 54. h6 {[%clk 0:00:17.5]} 54... Ne6 {[%clk
0:00:02.9]} 55. h7 {[%clk 0:00:17]} 55... Qh6+ {[%clk 0:00:03.3]} 56. Qh5 {[%clk
0:00:17.6]} 1-0

[Event "Late-Titled-Tuesday-Blitz-February-27-2024"]
[Site "Chess.com"]
[Date "2024.02.27"]
[Round "3"]
[White "OPQRC"]
[Black "MiguelEduardoGB"]
[Result "1-0"]
[WhiteElo "2529"]
[BlackElo "2155"]
[TimeControl "180+1"]
[EndTime "14:29:26 PST"]
[Termination "OPQRC won by resignation"]

1. e4 {[%clk 0:02:59.7]} 1... c6 {[%clk 0:02:59.7]} 2. d4 {[%clk 0:02:57.2]}
2... d5 {[%clk 0:03:00]} 3. exd5 {[%clk 0:02:58.1]} 3... cxd5 {[%clk 0:03:00.6]}
4. Bf4 {[%clk 0:02:58.1]} 4... Nf6 {[%clk 0:03:00.8]} 5. c3 {[%clk 0:02:58.5]}
5... Nc6 {[%clk 0:03:01.1]} 6. Nd2 {[%clk 0:02:59.1]} 6... a6 {[%clk 0:02:58.7]}
7. Ngf3 {[%clk 0:02:58.5]} 7... Bg4 {[%clk 0:02:58.7]} 8. h3 {[%clk 0:02:58.6]}
8... Bxf3 {[%clk 0:02:58.6]} 9. Nxf3 {[%clk 0:02:58.1]} 9... e6 {[%clk
0:02:59.3]} 10. Bd3 {[%clk 0:02:57]} 10... Bd6 {[%clk 0:02:59]} 11. Ne5 {[%clk
0:02:57.3]} 11... Qc7 {[%clk 0:02:49.5]} 12. Qe2 {[%clk 0:02:56.9]} 12... Nd7
{[%clk 0:02:40.6]} 13. Nxd7 {[%clk 0:02:43.6]} 13... Qxd7 {[%clk 0:02:40.3]} 14.
Bd2 {[%clk 0:02:39.9]} 14... O-O {[%clk 0:02:29.8]} 15. f4 {[%clk 0:02:39.3]}
15... b5 {[%clk 0:02:26.2]} 16. O-O {[%clk 0:02:38.6]} 16... Ne7 {[%clk
0:02:07.4]} 17. Rae1 {[%clk 0:02:31.8]} 17... a5 {[%clk 0:01:28.3]} 18. Bxb5
{[%clk 0:02:19.6]} 18... Qb7 {[%clk 0:01:22.8]} 19. a4 {[%clk 0:02:19.1]} 19...
Nf5 {[%clk 0:01:20.2]} 20. Qd3 {[%clk 0:02:14.3]} 20... Be7 {[%clk 0:01:12.4]}
21. g4 {[%clk 0:02:08.6]} 21... Nd6 {[%clk 0:01:12.5]} 22. f5 {[%clk 0:02:07.2]}
22... Ne4 {[%clk 0:01:12.1]} 23. Kg2 {[%clk 0:01:57]} 23... Rab8 {[%clk
0:01:04]} 24. Bf4 {[%clk 0:01:51.6]} 24... Rbc8 {[%clk 0:01:01.9]} 25. fxe6
{[%clk 0:01:47.7]} 25... fxe6 {[%clk 0:01:01.1]} 26. Be5 {[%clk 0:01:46.6]}
26... Bh4 {[%clk 0:00:51.4]} 27. Rxf8+ {[%clk 0:01:38.5]} 27... Rxf8 {[%clk
0:00:51.5]} 28. Rf1 {[%clk 0:01:38.6]} 28... Rxf1 {[%clk 0:00:49.6]} 29. Qxf1
{[%clk 0:01:37.7]} 29... h6 {[%clk 0:00:23.5]} 30. Qf3 {[%clk 0:01:09.3]} 30...
Nd2 {[%clk 0:00:16.9]} 31. Qe2 {[%clk 0:01:05.7]} 31... Ne4 {[%clk 0:00:16.8]}
32. Bd3 {[%clk 0:00:58.1]} 32... Ng5 {[%clk 0:00:17.1]} 33. Bf4 {[%clk
0:00:42.6]} 33... Qf7 {[%clk 0:00:14.9]} 34. Bxg5 {[%clk 0:00:42.3]} 34... Bxg5
{[%clk 0:00:15.8]} 35. b4 {[%clk 0:00:40.4]} 35... axb4 {[%clk 0:00:15.5]} 36.
cxb4 {[%clk 0:00:41]} 36... Qe7 {[%clk 0:00:13.1]} 37. b5 {[%clk 0:00:31.7]}
37... Qd6 {[%clk 0:00:10.6]} 38. a5 {[%clk 0:00:30.2]} 38... Bf6 {[%clk
0:00:08.5]} 39. b6 {[%clk 0:00:23]} 39... Bxd4 {[%clk 0:00:08.6]} 40. b7 {[%clk
0:00:23]} 40... Ba7 {[%clk 0:00:07.4]} 41. Qc2 {[%clk 0:00:13.7]} 41... Bb8
{[%clk 0:00:07.1]} 42. Qc8+ {[%clk 0:00:13.6]} 42... Kf7 {[%clk 0:00:07.7]} 43.
Qc2 {[%clk 0:00:04.7]} 43... Qg3+ {[%clk 0:00:07.5]} 44. Kf1 {[%clk 0:00:05.2]}
44... Ke7 {[%clk 0:00:05.5]} 45. Qc5+ {[%clk 0:00:03.6]} 45... Kf6 {[%clk
0:00:04.1]} 46. Qf8+ {[%clk 0:00:03.6]} 46... Ke5 {[%clk 0:00:03.2]} 47. Qxb8+
{[%clk 0:00:03.9]} 47... Kd4 {[%clk 0:00:03.1]} 48. Qxg3 {[%clk 0:00:04.8]} 1-0

[Event "Late-Titled-Tuesday-Blitz-February-27-2024"]
[Site "Chess.com"]
[Date "2024.02.27"]
[Round "3"]
[White "AcostaPablo"]
[Black "Peroncio"]
[Result "1-0"]
[WhiteElo "2629"]
[BlackElo "2423"]
[TimeControl "180+1"]
[EndTime "14:29:33 PST"]
[Termination "AcostaPablo won on time"]

1. e4 {[%clk 0:02:59]} 1... c5 {[%clk 0:03:00.1]} 2. Nf3 {[%clk 0:02:57.6]} 2...
d6 {[%clk 0:03:00.4]} 3. Bb5+ {[%clk 0:02:56.6]} 3... Nd7 {[%clk 0:03:00.5]} 4.
O-O {[%clk 0:02:53.6]} 4... Nf6 {[%clk 0:03:00.8]} 5. Re1 {[%clk 0:02:52.8]}
5... a6 {[%clk 0:03:00.9]} 6. Bf1 {[%clk 0:02:53.4]} 6... b6 {[%clk 0:03:01.3]}
7. c3 {[%clk 0:02:47]} 7... Bb7 {[%clk 0:03:01.4]} 8. d3 {[%clk 0:02:43.1]} 8...
e5 {[%clk 0:03:00.7]} 9. Nbd2 {[%clk 0:02:43.2]} 9... Be7 {[%clk 0:03:01.2]} 10.
Nc4 {[%clk 0:02:43.2]} 10... O-O {[%clk 0:03:00.5]} 11. Ne3 {[%clk 0:02:42.9]}
11... Re8 {[%clk 0:03:00.3]} 12. Nf5 {[%clk 0:02:42.6]} 12... Bf8 {[%clk
0:03:00.8]} 13. Bg5 {[%clk 0:02:42]} 13... Qc7 {[%clk 0:02:46.6]} 14. c4 {[%clk
0:02:31.6]} 14... h6 {[%clk 0:02:42.1]} 15. Bh4 {[%clk 0:02:28.9]} 15... g6
{[%clk 0:02:39.7]} 16. Ne3 {[%clk 0:02:27.9]} 16... Bg7 {[%clk 0:02:39]} 17. h3
{[%clk 0:02:25.9]} 17... Nf8 {[%clk 0:02:38.8]} 18. Nd5 {[%clk 0:02:25.3]} 18...
Nxd5 {[%clk 0:02:37.3]} 19. cxd5 {[%clk 0:02:24.3]} 19... f5 {[%clk 0:02:32.3]}
20. exf5 {[%clk 0:02:02.2]} 20... gxf5 {[%clk 0:02:28.4]} 21. Qb3 {[%clk
0:02:01.8]} 21... b5 {[%clk 0:02:13.1]} 22. a4 {[%clk 0:01:53.9]} 22... b4
{[%clk 0:02:13]} 23. Nd2 {[%clk 0:01:36.8]} 23... Qf7 {[%clk 0:02:01.2]} 24. Nc4
{[%clk 0:01:36.9]} 24... Bxd5 {[%clk 0:02:00.1]} 25. Qc2 {[%clk 0:01:36.7]}
25... Ng6 {[%clk 0:01:42.5]} 26. Bg3 {[%clk 0:01:32.6]} 26... Rad8 {[%clk
0:01:35.3]} 27. Rad1 {[%clk 0:01:26.4]} 27... Kh7 {[%clk 0:01:19.4]} 28. Be2
{[%clk 0:01:18.9]} 28... Rg8 {[%clk 0:01:18]} 29. Bh5 {[%clk 0:01:18]} 29... Qf6
{[%clk 0:01:12.8]} 30. Ne3 {[%clk 0:00:35.1]} 30... Be6 {[%clk 0:01:02.1]} 31.
f4 {[%clk 0:00:33.8]} 31... exf4 {[%clk 0:00:57.1]} 32. Bxg6+ {[%clk 0:00:32.8]}
32... Qxg6 {[%clk 0:00:56.1]} 33. Bxf4 {[%clk 0:00:32.7]} 33... Bd4 {[%clk
0:00:55.2]} 34. Kh2 {[%clk 0:00:27.3]} 34... Bd7 {[%clk 0:00:42.2]} 35. Nd5
{[%clk 0:00:23.1]} 35... Rg7 {[%clk 0:00:34.9]} 36. Re2 {[%clk 0:00:18.4]} 36...
Bc6 {[%clk 0:00:33.9]} 37. Ne7 {[%clk 0:00:18.6]} 37... Qe8 {[%clk 0:00:27]} 38.
Nxf5 {[%clk 0:00:13.3]} 38... Qf7 {[%clk 0:00:25.1]} 39. g4 {[%clk 0:00:11.1]}
39... Bf3 {[%clk 0:00:15.1]} 40. Rf2 {[%clk 0:00:08]} 40... Bxd1 {[%clk
0:00:14.4]} 41. Qxd1 {[%clk 0:00:05.6]} 41... Rg6 {[%clk 0:00:14.4]} 42. Rf3
{[%clk 0:00:05.5]} 42... Qe6 {[%clk 0:00:11.9]} 43. Qf1 {[%clk 0:00:05.3]} 43...
Be5 {[%clk 0:00:12.1]} 44. Re3 {[%clk 0:00:04.9]} 44... Bxf4+ {[%clk 0:00:12]}
45. Qxf4 {[%clk 0:00:05.8]} 45... Qf6 {[%clk 0:00:10.4]} 46. Re7+ {[%clk
0:00:06.3]} 46... Kh8 {[%clk 0:00:11]} 47. Qe4 {[%clk 0:00:06.7]} 47... Qxb2+
{[%clk 0:00:06.6]} 48. Kg3 {[%clk 0:00:06.6]} 48... Qf6 {[%clk 0:00:06.6]} 49.
Qb7 {[%clk 0:00:07]} 1-0

[Event "Late-Titled-Tuesday-Blitz-February-27-2024"]
[Site "Chess.com"]
[Date "2024.02.27"]
[Round "3"]
[White "Binary010"]
[Black "EsmeraldasAnderson03"]
[Result "0-1"]
[WhiteElo "2810"]
[BlackElo "2518"]
[TimeControl "180+1"]
[EndTime "14:29:34 PST"]
[Termination "EsmeraldasAnderson03 won on time"]

1. d4 {[%clk 0:03:00.9]} 1... d5 {[%clk 0:02:59.8]} 2. c4 {[%clk 0:02:56.9]}
2... dxc4 {[%clk 0:03:00.7]} 3. Nf3 {[%clk 0:02:54.5]} 3... Nf6 {[%clk
0:03:01.2]} 4. e3 {[%clk 0:02:54.9]} 4... e6 {[%clk 0:03:01.5]} 5. Bxc4 {[%clk
0:02:55]} 5... a6 {[%clk 0:03:02.4]} 6. O-O {[%clk 0:02:54.7]} 6... c5 {[%clk
0:03:03]} 7. b3 {[%clk 0:02:51.9]} 7... Nbd7 {[%clk 0:03:01.2]} 8. Bb2 {[%clk
0:02:51.8]} 8... Be7 {[%clk 0:03:00.5]} 9. Nbd2 {[%clk 0:02:49]} 9... O-O {[%clk
0:02:59.4]} 10. Rc1 {[%clk 0:02:49.2]} 10... b6 {[%clk 0:02:59.6]} 11. Qc2
{[%clk 0:02:44.3]} 11... Bb7 {[%clk 0:02:59]} 12. Rfd1 {[%clk 0:02:44.4]} 12...
Rc8 {[%clk 0:02:53.8]} 13. Qb1 {[%clk 0:02:41.5]} 13... Rc7 {[%clk 0:02:30]} 14.
dxc5 {[%clk 0:02:11]} 14... Bxc5 {[%clk 0:02:28.3]} 15. a3 {[%clk 0:02:06.5]}
15... Qa8 {[%clk 0:02:26.4]} 16. b4 {[%clk 0:02:06.2]} 16... Be7 {[%clk
0:02:27]} 17. Bf1 {[%clk 0:01:48.7]} 17... Rfc8 {[%clk 0:02:25.8]} 18. Rxc7
{[%clk 0:01:46.7]} 18... Rxc7 {[%clk 0:02:26.7]} 19. Nd4 {[%clk 0:01:20.9]}
19... Ne4 {[%clk 0:02:14.3]} 20. Nxe4 {[%clk 0:00:57.4]} 20... Bxe4 {[%clk
0:02:14.4]} 21. Qa1 {[%clk 0:00:58.2]} 21... Bf6 {[%clk 0:02:11.1]} 22. f3
{[%clk 0:00:54.8]} 22... Bb7 {[%clk 0:02:09.2]} 23. Nb3 {[%clk 0:00:43.1]} 23...
Qc8 {[%clk 0:02:02.7]} 24. Bxf6 {[%clk 0:00:40]} 24... Nxf6 {[%clk 0:02:03.6]}
25. Qd4 {[%clk 0:00:39.9]} 25... Rd7 {[%clk 0:02:01.9]} 26. Qa1 {[%clk
0:00:36.5]} 26... Qc2 {[%clk 0:01:58.6]} 27. Rxd7 {[%clk 0:00:28.8]} 27... Nxd7
{[%clk 0:01:59.5]} 28. Qd4 {[%clk 0:00:21.4]} 28... Nf8 {[%clk 0:01:25.6]} 29.
Nd2 {[%clk 0:00:21.1]} 29... b5 {[%clk 0:01:25.4]} 30. e4 {[%clk 0:00:17]} 30...
h6 {[%clk 0:01:22.9]} 31. h3 {[%clk 0:00:15.9]} 31... Ng6 {[%clk 0:01:20.9]} 32.
Kh2 {[%clk 0:00:13]} 32... Kh7 {[%clk 0:01:20.5]} 33. Qd3 {[%clk 0:00:05.5]}
33... Qc7+ {[%clk 0:01:20.5]} 34. Kg1 {[%clk 0:00:05.3]} 34... Nf4 {[%clk
0:01:20.9]} 35. Qe3 {[%clk 0:00:04.6]} 35... Qe5 {[%clk 0:01:19.9]} 36. g3
{[%clk 0:00:04.3]} 36... Nd5 {[%clk 0:01:18.1]} 37. Qf2 {[%clk 0:00:03.9]} 37...
Nc3 {[%clk 0:01:14.6]} 38. Kh2 {[%clk 0:00:04.2]} 38... f5 {[%clk 0:01:12.2]}
39. exf5 {[%clk 0:00:03.3]} 39... exf5 {[%clk 0:01:13.1]} 40. Bg2 {[%clk
0:00:02.6]} 40... Ne2 {[%clk 0:01:09.5]} 41. f4 {[%clk 0:00:03.1]} 41... Qd6
{[%clk 0:00:59.7]} 42. Qxe2 {[%clk 0:00:02.5]} 42... Bxg2 {[%clk 0:01:00]} 43.
Kxg2 {[%clk 0:00:03.4]} 43... Qd5+ {[%clk 0:01:00.4]} 44. Nf3 {[%clk 0:00:04.1]}
44... Qb3 {[%clk 0:00:58.5]} 45. g4 {[%clk 0:00:03]} 45... Qxa3 {[%clk
0:00:57.6]} 46. gxf5 {[%clk 0:00:03.2]} 46... Qc3 {[%clk 0:00:58.3]} 47. Qe4
{[%clk 0:00:03.2]} 47... Qf6 {[%clk 0:00:57.1]} 48. Kg3 {[%clk 0:00:02.8]} 48...
Kg8 {[%clk 0:00:55.6]} 49. Ne5 {[%clk 0:00:03.5]} 49... Qf8 {[%clk 0:00:55.1]}
50. Qd5+ {[%clk 0:00:03.7]} 50... Kh7 {[%clk 0:00:54.9]} 51. Qe4 {[%clk
0:00:04.4]} 51... Kg8 {[%clk 0:00:55.1]} 52. Qd3 {[%clk 0:00:04.6]} 52... Qxb4
{[%clk 0:00:54.3]} 53. Qd8+ {[%clk 0:00:04.7]} 53... Qf8 {[%clk 0:00:54.3]} 54.
Qxf8+ {[%clk 0:00:04.4]} 54... Kxf8 {[%clk 0:00:55.2]} 55. Kf3 {[%clk
0:00:04.7]} 55... Ke7 {[%clk 0:00:55]} 56. Ke4 {[%clk 0:00:05.3]} 56... Kd6
{[%clk 0:00:55.4]} 57. Nf7+ {[%clk 0:00:05.3]} 57... Kc5 {[%clk 0:00:55]} 58.
Nd8 {[%clk 0:00:03.5]} 58... b4 {[%clk 0:00:53.4]} 59. Ne6+ {[%clk 0:00:04.1]}
59... Kc4 {[%clk 0:00:53]} 60. Nxg7 {[%clk 0:00:04.2]} 60... b3 {[%clk
0:00:53.6]} 61. f6 {[%clk 0:00:04.8]} 61... b2 {[%clk 0:00:54.3]} 62. f7 {[%clk
0:00:05.1]} 62... b1=Q+ {[%clk 0:00:54.9]} 63. Ke5 {[%clk 0:00:05.9]} 63... Qb8+
{[%clk 0:00:53.9]} 64. Kf6 {[%clk 0:00:05.3]} 64... Qxf4+ {[%clk 0:00:54.3]} 65.
Ke7 {[%clk 0:00:05.7]} 65... Qe5+ {[%clk 0:00:53.4]} 66. Kf8 {[%clk 0:00:05.3]}
66... a5 {[%clk 0:00:52.4]} 67. Kg8 {[%clk 0:00:05.5]} 67... Qd5 {[%clk
0:00:53]} 68. Ne8 {[%clk 0:00:03.6]} 68... a4 {[%clk 0:00:51.7]} 69. Kg7 {[%clk
0:00:03.9]} 69... Qg5+ {[%clk 0:00:50.5]} 70. Kh7 {[%clk 0:00:03.5]} 70... Qe7
{[%clk 0:00:50.6]} 71. Kg8 {[%clk 0:00:03.8]} 71... Qe6 {[%clk 0:00:49.3]} 72.
Kg7 {[%clk 0:00:03.9]} 72... Qe7 {[%clk 0:00:47.6]} 73. Kg8 {[%clk 0:00:03.9]}
73... a3 {[%clk 0:00:48.1]} 0-1